Workbook

Sheet Inizio
B1: INFORMAZIONI SU QUESTO MODELLO
B2: Questa cartella di lavoro Budget evento consente di tenere traccia delle spese sostenute e dei ricavi ottenuti da un evento.
B3: Immettere il nome dell'evento e i dettagli nelle tabelle nei fogli di lavoro Uscite ed Entrate.
B4: Il totale uscite e il totale entrate vengono calcolati automaticamente.
B5: Il riepilogo e il grafico dei profitti e delle perdite vengono aggiornati automaticamente nel foglio di lavoro Riepilogo profitti-perdite.
B6: Nota:
B7: Nella colonna A di ciascun foglio di lavoro sono disponibili altre istruzioni. Questo testo è stato nascosto intenzionalmente. Per rimuovere il testo, selezionare la colonna A, quindi scegliere ELIMINA. Per visualizzare il testo, selezionare la colonna A, quindi modificare il colore del carattere.
B8: Per altre informazioni sulle tabelle, premere MAIUSC, quindi F10 in una tabella, selezionare l'opzione TABELLA, quindi selezionare TESTO ALTERNATIVO.

Sheet Spese
A1: Immettere le spese stimate ed effettive per ogni categoria nelle rispettive tabelle in questo foglio di lavoro e il nome dell'evento nella cella D1 per personalizzare il titolo di questo e altri fogli di lavoro. Il sottotitolo di questo foglio di lavoro si trova nella cella H1. Nelle celle di questa colonna sono disponibili istruzioni utili per l'uso di questo foglio di lavoro. L'istruzione successiva si trova nella cella A3. | B1: Budget evento per Nome evento | H1: USCITE
A3: L'etichetta Totale uscite si trova nella cella a destra, l'etichetta Stimate nella cella G3 e l'etichetta Effettive in H3. | B3: TOTALE USCITE | G3: Stimate | H3: Effettive
A4: Il totale delle uscite stimate nella cella G4 e il totale delle uscite effettive nella cella H4 vengono calcolati automaticamente. L'istruzione successiva si trova nella cella A6. | G4: =SUM(C11,C19,C25,C32,G11,G19,G24) -> € 882.00 | H4: =SUM(D11,D19,D25,D32,H11,H19,H24) -> € 333.00
A6: Immettere le spese relative al sito nella tabella a partire dalla cella a destra e le spese per i rinfreschi nella tabella a partire dalla cella F6. L'istruzione successiva si trova nella cella A13. | B6: Sito | C6: Stimate | D6: Effettive | F6: Rinfresco | G6: Stimate | H6: Effettive
B7: Spese per sala e hall | C7: € 500.00 | F7: Cibo
B8: Personale del sito | F8: Bevande | G8: € 20.00
B9: Apparecchiature | F9: Biancheria da tavola | H9: € 20.00
B10: Tavoli e sedie | F10: Personale e mance
B11: Totale | C11: =SUBTOTAL(109,SpeseRelativeAlSito[Stimate]) -> € 500.00 | D11: =SUBTOTAL(109,SpeseRelativeAlSito[Effettive]) -> € 0.00 | F11: Totale | G11: =SUBTOTAL(109,SpesePerIRinfreschi[Stimate]) -> € 20.00 | H11: =SUBTOTAL(109,SpesePerIRinfreschi[Effettive]) -> € 20.00
A13: Immettere le spese relative alle decorazioni nella tabella a partire dalla cella a destra e le spese per il programma nella tabella a partire dalla cella F13. L'istruzione successiva si trova nella cella A21. | B13: Decorazioni | C13: Stimate | D13: Effettive | F13: Programma | G13: Stimate | H13: Effettive
B14: Fiori | C14: € 200.00 | D14: € 300.00 | F14: Musicisti
B15: Candele | F15: Relatori | G15: € 30.00
B16: Illuminazione | F16: Viaggio
B17: Palloncini | F17: Hotel
B18: Forniture carta | F18: Altro
B19: Totale | C19: =SUBTOTAL(109,SpeseRelativeAlleDecorazioni[Stimate]) -> € 200.00 | D19: =SUBTOTAL(109,SpeseRelativeAlleDecorazioni[Effettive]) -> € 300.00 | F19: Totale | G19: =SUBTOTAL(109,SpesePerIlProgramma[Stimate]) -> € 30.00 | H19: =SUBTOTAL(109,SpesePerIlProgramma[Effettive]) -> € 0.00
A21: Immettere le spese relative alla pubblicità nella tabella a partire dalla cella a destra e le spese per i premi nella tabella a partire dalla cella F21. L'istruzione successiva si trova nella cella A27 | B21: Pubblicità | C21: Stimate | D21: Effettive | F21: Premi | G21: Stimate | H21: Effettive
B22: Grafica | F22: Nastri/targhe/coppe
B23: Fotocopie/stampa | C23: € 20.00 | F23: Regali | G23: € 100.00
B24: Affrancatura | F24: Totale | G24: =SUBTOTAL(109,SpesePerIPremi[Stimate]) -> € 100.00 | H24: =SUBTOTAL(109,SpesePerIPremi[Effettive]) -> € 0.00
B25: Totale | C25: =SUBTOTAL(109,SpeseRelativeAllaPubblicità[Stimate]) -> € 20.00 | D25: =SUBTOTAL(109,SpeseRelativeAllaPubblicità[Effettive]) -> € 0.00
A27: Immettere le spese varie nella tabella a partire dalla cella a destra. | B27: Varie | C27: Stimate | D27: Effettive
B28: Telefono | D28: € 13.00
B29: Trasporti | C29: € 12.00
B30: Cancelleria
B31: Servizi fax
B32: Totale | C32: =SUBTOTAL(109,SpeseVarie[Stimate]) -> € 12.00 | D32: =SUBTOTAL(109,SpeseVarie[Effettive]) -> € 13.00

Sheet Ricavi
A1: Immettere le entrate stimate ed effettive per ogni categoria nelle rispettive tabelle in questo foglio di lavoro. Il titolo di questo foglio di lavoro viene aggiornato automaticamente nelle celle a destra. Il sottotitolo si trova nella cella G1. Nelle celle di questa colonna sono disponibili istruzioni utili per l'uso di questo foglio di lavoro. L'istruzione successiva si trova nella cella A3. | B1: =Spese!B1 -> Budget evento per Nome evento | G1: ENTRATE
A3: L'etichetta Totale entrate si trova nella cella a destra, l'etichetta Stimate nella cella F3 e l'etichetta Effettive in G3. | B3: TOTALE ENTRATE | F3: Stimate | G3: Effettive
A4: Il totale delle entrate stimate viene calcolato automaticamente nella cella F4 e il totale delle entrate effettive in G4. | F4: =SUM(Ingressi[[#Totals],[Entrate stimate]],AnnunciInProgramma[[#Totals],[Entrate stimate]],EspositoriFornitori[[#Totals],[Entrate stimate]],VenditaDiArticoli[[#Totals],[Entrate stimate]]) -> € 1,936.00 | G4: =SUM(Ingressi[[#Totals],[Entrate effettive]],AnnunciInProgramma[[#Totals],[Entrate effettive]],EspositoriFornitori[[#Totals],[Entrate effettive]],VenditaDiArticoli[[#Totals],[Entrate effettive]]) -> € 1,831.00
A5: L'etichetta Ingressi si trova nella cella a destra. | B5: INGRESSI
A6: Immettere il numero stimato ed effettivo di ingressi con i costi dei biglietti nella tabella a partire dalla cella a destra. Le entrate stimate ed effettive derivanti dagli ingressi vengono calcolate automaticamente. L'istruzione successiva si trova nella cella A11. | B6: N. stimato | C6: N. effettivo | D6: Tipo | E6: Prezzo | F6: Entrate stimate | G6: Entrate effettive
B7: 300 | C7: 278 | D7: Adulti | E7: € 5.00 | F7: =B7*E7 -> € 1,500.00 | G7: =C7*E7 -> € 1,390.00
B8: 197 | C8: 195 | D8: Bambini | E8: € 2.00 | F8: =B8*E8 -> € 394.00 | G8: =C8*E8 -> € 390.00
B9: 42 | C9: 51 | D9: Altro | E9: € 1.00 | F9: =B9*E9 -> € 42.00 | G9: =C9*E9 -> € 51.00
B10: Totale | F10: =SUBTOTAL(109,Ingressi[Entrate stimate]) -> € 1,936.00 | G10: =SUBTOTAL(109,Ingressi[Entrate effettive]) -> € 1,831.00
A11: L'etichetta Annunci in programma si trova nella cella a destra. | B11: ANNUNCI IN PROGRAMMA
A12: Immettere il numero stimato ed effettivo di annunci in programma con le relative tariffe nella tabella a partire dalla cella a destra. Le entrate stimate ed effettive derivanti dagli annunci vengono calcolate automaticamente. L'istruzione successiva si trova nella cella A17. | B12: N. stimato | C12: N. effettivo | D12: Tipo | E12: Prezzo | F12: Entrate stimate | G12: Entrate effettive
B13: 12 | D13: Copertine | F13: =B13*E13 -> € 0.00 | G13: =C13*E13 -> € 0.00
C14: 158 | D14: Mezze pagine | F14: =B14*E14 -> € 0.00 | G14: =C14*E14 -> € 0.00
B15: 4 | D15: Quarti di pagina | F15: =B15*E15 -> € 0.00 | G15: =C15*E15 -> € 0.00
B16: Totale | F16: =SUBTOTAL(109,AnnunciInProgramma[Entrate stimate]) -> € 0.00 | G16: =SUBTOTAL(109,AnnunciInProgramma[Entrate effettive]) -> € 0.00
A17: L'etichetta Espositori/fornitori si trova nella cella a destra. | B17: ESPOSITORI/FORNITORI
A18: Immettere il numero stimato ed effettivo di espositori o fornitori con le tariffe degli stand nella tabella a partire dalla cella a destra. Le entrate stimate ed effettive vengono calcolate automaticamente. L'istruzione successiva si trova nella cella A23. | B18: N. stimato | C18: N. effettivo | D18: Tipo | E18: Prezzo | F18: Entrate stimate | G18: Entrate effettive
B19: 23 | D19: Stand grandi | F19: =B19*E19 -> € 0.00 | G19: =C19*E19 -> € 0.00
B20: 354 | D20: Stand medi | F20: =B20*E20 -> € 0.00 | G20: =C20*E20 -> € 0.00
B21: 56 | D21: Stand piccoli | F21: =B21*E21 -> € 0.00 | G21: =C21*E21 -> € 0.00
B22: Totale | F22: =SUBTOTAL(109,EspositoriFornitori[Entrate stimate]) -> € 0.00 | G22: =SUBTOTAL(109,EspositoriFornitori[Entrate effettive]) -> € 0.00
A23: L'etichetta Vendita di articoli si trova nella cella a destra. | B23: VENDITA DI ARTICOLI
A24: Immettere il numero stimato ed effettivo di articoli venduti con i rispettivi prezzi nella tabella a partire dalla cella a destra. Le entrate stimate ed effettive vengono calcolate automaticamente. | B24: N. stimato | C24: N. effettivo | D24: Tipo | E24: Prezzo | F24: Entrate stimate | G24: Entrate effettive
D25: Articolo | F25: =B25*E25 -> € 0.00 | G25: =C25*E25 -> € 0.00
B26: 123 | D26: Articolo | F26: =B26*E26 -> € 0.00 | G26: =C26*E26 -> € 0.00
D27: Articolo | F27: =B27*E27 -> € 0.00 | G27: =C27*E27 -> € 0.00
B28: 13 | D28: Articolo | F28: =B28*E28 -> € 0.00 | G28: =C28*E28 -> € 0.00
B29: Totale | F29: =SUBTOTAL(109,VenditaDiArticoli[Entrate stimate]) -> € 0.00 | G29: =SUBTOTAL(109,VenditaDiArticoli[Entrate effettive]) -> € 0.00

Sheet Riepilogo profitti - perdite
A1: Il riepilogo e il grafico dei profitti e delle perdite che mostra il totale delle entrate e delle uscite vengono creati automaticamente in questo foglio di lavoro. Il titolo di questo foglio di lavoro viene aggiornato automaticamente nelle celle a destra. Il sottotitolo si trova nelle celle G1 e G2. Nelle celle di questa colonna sono disponibili istruzioni utili per l'uso di questo foglio di lavoro. L'istruzione successiva si trova nella cella A3. | B1: =Spese!B1 -> Budget evento per Nome evento | G1: RIEPILOGO
G2: profitti-perdite
A3: Il grafico a barre che confronta le entrate e le uscite stimate ed effettive si trova nella cella E3. | E3: Il grafico a barre che mostra il confronto tra ricavi e costi stimati e ricavi e costi effettivi si trova in questa cella.
A4: La tabella di riepilogo che inizia nella cella a destra si aggiorna automaticamente. L'istruzione successiva si trova nella cella A8. | B4: Totale | C4: Stimate | D4: Effettive
B5: Totale entrate | C5: =Ricavi!F4 -> € 1,936.00 | D5: =Ricavi!G4 -> € 1,831.00
B6: Totale uscite | C6: =Spese!G4 -> € 882.00 | D6: =Spese!H4 -> € 333.00
A8: Il totale stimato dei profitti o delle perdite viene calcolato automaticamente nella cella C8 e il totale effettivo dei profitti o delle perdite nella cella D8. | B8: Totale profitto (o perdita) | C8: =C5-C6 -> € 1,054.00 | D8: =D5-D6 -> € 1,498.00
